fUSD/lending_fUSD_20260409
["ID","MTS","AMOUNT","RATE_DAILY","PERIOD"]
[420152775,1775730646919,-500.0,0.00015709,2]
[420152776,1775730646929,-500.0,0.00015709,2]
[420152777,1775730646938,-437.03396529,0.00015709,2]
[420152778,1775730646948,-1223.280238,0.00015709,2]
[420152779,1775730646958,-1223.280238,0.00015709,2]
[420152780,1775730646967,-623.023197,0.00015709,2]
[420152781,1775730646977,-1223.280238,0.00015709,2]
[420152782,1775730646986,-623.023197,0.00015709,2]
[420152783,1775730646996,-1223.280238,0.00015709,2]
[420152784,1775730647005,-623.023197,0.00015709,2]
[420152785,1775730647015,-623.023197,0.00015709,2]
[420152786,1775730647025,-151.0,0.00015709,2]
[420152787,1775730647035,-151.0,0.00015709,2]
[420152788,1775730647045,-305.591521,0.00015709,2]
[420152789,1775730647054,-374.446298,0.00015709,2]
[420152790,1775730647064,-305.591521,0.00015709,2]
[420152792,1775730647074,-374.446298,0.00015709,2]
[420152794,1775730647083,-305.591521,0.00015709,2]
[420152795,1775730647092,-228.366184,0.00015709,2]
[420152796,1775730647102,-374.446298,0.00015709,2]
[420152797,1775730647112,-305.591521,0.00015709,2]
[420152798,1775730647122,-151.0,0.00015709,2]
[420152799,1775730647132,-228.366184,0.00015709,2]
[420152800,1775730647141,-374.446298,0.00015709,2]
[420152801,1775730647151,-151.0,0.00015709,2]
[420152802,1775730647161,-1195.981713,0.00015709,2]
[420152803,1775730647171,-228.366184,0.00015709,2]
[420152804,1775730647181,-151.0,0.00015709,2]
[420152805,1775730647190,-151.0,0.00015709,2]
[420152806,1775730647200,-228.366184,0.00015709,2]
[420152807,1775730647210,-1195.981713,0.00015709,2]
[420152808,1775730647219,-1195.981713,0.00015709,2]
[420152809,1775730647229,-151.0,0.00015709,2]
[420152810,1775730647239,-1195.981713,0.00015709,2]
[420152811,1775730647248,-151.0,0.00015709,2]
[420152812,1775730647257,-1390.992094,0.00015709,2]
[420152813,1775730647267,-588.287141,0.00015709,2]
[420152814,1775730647276,-179.727262,0.00015709,2]
[420152815,1775730647287,-588.287141,0.00015709,2]
[420152816,1775730647296,-588.287141,0.00015709,2]
[420152817,1775730647306,-151.0,0.00015709,2]
[420152818,1775730647316,-151.0,0.00015709,2]
[420152819,1775730647326,-588.287141,0.00015709,2]
[420152820,1775730647335,-151.0,0.00015709,2]
[420152821,1775730647345,-151.0,0.00015709,2]
[420152822,1775730647354,-151.0,0.00015709,2]
[420152823,1775730647364,-151.0,0.00015709,2]
[420152824,1775730647374,-151.0,0.00015709,2]
[420152825,1775730647383,-1390.992094,0.00015709,2]
[420152826,1775730647392,-151.0,0.00015709,2]
[420152827,1775730647402,-1390.992094,0.00015709,2]
[420152828,1775730647412,-1390.992094,0.00015709,2]
[420152829,1775730647422,-2412.081982,0.00015709,2]
[420152830,1775730647432,-2412.081982,0.00015709,2]
[420152831,1775730647441,-2412.081982,0.00015709,2]
[420152832,1775730647451,-2412.081982,0.00015709,2]
[420152833,1775730647460,-1368.683849,0.00015709,2]
[420152834,1775730647469,-680.274183,0.00015709,2]
[420152835,1775730647479,-1368.683849,0.00015709,2]
[420152836,1775730647489,-680.274183,0.00015709,2]
[420152837,1775730647498,-1368.683849,0.00015709,2]
[420152838,1775730647508,-151.0,0.00015709,2]
[420152839,1775730647518,-680.274183,0.00015709,2]
[420152840,1775730647528,-1368.683849,0.00015709,2]
[420152841,1775730647539,-151.0,0.00015709,2]
[420152842,1775730647549,-680.274183,0.00015709,2]
[420152843,1775730647559,-151.0,0.00015709,2]
[420152844,1775730647569,-151.0,0.00015709,2]
[420152845,1775730647578,-151.0,0.00015709,2]
[420152846,1775730647588,-1162.763235,0.00015709,2]
[420152847,1775730647598,-151.0,0.00015709,2]
[420152848,1775730647608,-1162.763235,0.00015709,2]
[420152849,1775730647618,-151.0,0.00015709,2]
[420152850,1775730647917,-151.0,0.00015709,2]
[420152851,1775730647928,-151.0,0.00015709,2]
[420152852,1775730647938,-184.633492,0.00015709,2]
[420152853,1775730647948,-151.0,0.00015709,2]
[420152854,1775730647958,-151.0,0.00015709,2]
[420152855,1775730647968,-1162.763235,0.00015709,2]
[420152856,1775730647978,-249.748488,0.00015709,2]
[420152857,1775730647988,-153.061842,0.00015709,2]
[420152858,1775730647999,-1162.763235,0.00015709,2]
[420152859,1775730648009,-192.515506,0.00015709,2]
[420152860,1775730648019,-192.515506,0.00015709,2]
[420152861,1775730648029,-984.45069,0.00015709,2]
[420152862,1775730648039,-1716.123877,0.00015709,2]
[420152863,1775730648049,-984.45069,0.00015709,2]
[420152864,1775730648059,-192.515506,0.00015709,2]
[420152865,1775730648069,-1716.123877,0.00015709,2]
[420152866,1775730648079,-192.515506,0.00015709,2]
[420152867,1775730648089,-984.45069,0.00015709,2]
[420152868,1775730648099,-428.509352,0.00015709,2]
[420152869,1775730648109,-1716.123877,0.00015709,2]
[420152870,1775730648119,-428.509352,0.00015709,2]
[420152871,1775730648128,-1716.123877,0.00015709,2]
[420152872,1775730648139,-151.0,0.00015709,2]
[420152873,1775730648149,-151.0,0.00015709,2]
[420152874,1775730648159,-428.509352,0.00015709,2]
[420152875,1775730648169,-151.0,0.00015709,2]
[420152876,1775730648179,-151.0,0.00015709,2]
[420152877,1775730648189,-428.509352,0.00015709,2]
[420152878,1775730648199,-151.0,0.00015709,2]
[420152879,1775730648209,-151.0,0.00015709,2]
[420152880,1775730648218,-151.0,0.00015709,2]
[420152881,1775730648228,-151.0,0.00015709,2]
[420152882,1775730648238,-151.0,0.00015709,2]
[420152883,1775730648249,-269.073157,0.00015709,2]
[420152884,1775730648258,-151.0,0.00015709,2]
[420152885,1775730648268,-151.0,0.00015709,2]
[420152886,1775730648279,-984.45069,0.00015709,2]
[420152887,1775730648289,-151.0,0.00015709,2]
[420152888,1775730648299,-378.316153,0.00015709,2]
[420152889,1775730648308,-666.0,0.00015709,2]
[420152890,1775730648319,-378.316153,0.00015709,2]
[420152891,1775730648329,-378.316153,0.00015709,2]
[420152892,1775730648339,-378.316153,0.00015709,2]
[420152893,1775730648348,-151.0,0.00015709,2]
[420152894,1775730648358,-153.619176,0.00015709,2]
[420152895,1775730648369,-248.188065,0.00015709,2]
[420152896,1775730648379,-645.46557,0.00015709,2]
[420152897,1775730648389,-248.188065,0.00015709,2]
[420152898,1775730648399,-159.363601,0.00015709,2]
[420152899,1775730648409,-248.188065,0.00015709,2]
[420152900,1775730648419,-645.46557,0.00015709,2]
[420152901,1775730648429,-578.068022,0.00015709,2]
[420152902,1775730648439,-248.188065,0.00015709,2]
[420152903,1775730648449,-645.46557,0.00015709,2]
[420152904,1775730648459,-344.108376,0.00015709,2]
[420152905,1775730648470,-804.866183,0.00015709,2]
[420152906,1775730648479,-578.068022,0.00015709,2]
[420152907,1775730648489,-645.46557,0.00015709,2]
[420152908,1775730648500,-151.0,0.00015709,2]
[420152909,1775730648510,-344.108376,0.00015709,2]
[420152910,1775730648520,-151.0,0.00015709,2]
[420152911,1775730648530,-804.866183,0.00015709,2]
[420152912,1775730648540,-151.0,0.00015709,2]
[420152913,1775730648550,-578.068022,0.00015709,2]
[420152914,1775730648560,-269.300417,0.00015709,2]
[420152915,1775730648570,-344.108376,0.00015709,2]
[420152916,1775730648580,-804.866183,0.00015709,2]
[420152917,1775730648590,-460.104724,0.00015709,2]
[420152918,1775730648599,-578.068022,0.00015709,2]
[420152919,1775730648608,-269.300417,0.00015709,2]
[420152920,1775730648618,-151.0,0.00015709,2]
[420152921,1775730648628,-344.108376,0.00015709,2]
[420152922,1775730648638,-804.866183,0.00015709,2]
[420152923,1775730648648,-460.104724,0.00015709,2]
[420152924,1775730648658,-269.300417,0.00015709,2]
[420152925,1775730648667,-151.0,0.00015709,2]
[420152926,1775730648677,-451.481934,0.00015709,2]
[420152927,1775730648687,-460.104724,0.00015709,2]
[420152928,1775730648697,-269.300417,0.00015709,2]
[420152929,1775730648707,-451.481934,0.00015709,2]
[420152930,1775730648717,-151.0,0.00015709,2]
[420152931,1775730648727,-256.451383,0.00015709,2]
[420152932,1775730648737,-460.104724,0.00015709,2]
[420152933,1775730648747,-451.481934,0.00015709,2]
[420152934,1775730648757,-256.451383,0.00015709,2]
[420152935,1775730648767,-451.481934,0.00015709,2]
[420152936,1775730648777,-256.451383,0.00015709,2]
[420152937,1775730648787,-256.451383,0.00015709,2]
[420152938,1775730648796,-151.0,0.00015709,2]
[420152939,1775730648806,-151.0,0.00015709,2]
[420152940,1775730648816,-151.0,0.00015709,2]
[420152941,1775730648826,-151.0,0.00015709,2]
[420152942,1775730648836,-151.0,0.00015709,2]
[420152943,1775730648845,-209.506468,0.00015709,2]
[420152944,1775730648855,-1256.584761,0.00015709,2]
[420152945,1775730648867,-1256.584761,0.00015709,2]
[420152946,1775730648877,-1256.584761,0.00015709,2]
[420152947,1775730648887,-251.036469,0.00015709,2]
[420152948,1775730648896,-1256.584761,0.00015709,2]
[420152949,1775730648906,-251.036469,0.00015709,2]
[420152950,1775730648916,-151.0,0.00015709,2]
[420152951,1775730648926,-178.765211,0.00015709,2]
[420152952,1775730648936,-251.036469,0.00015709,2]
[420152953,1775730648945,-151.0,0.00015709,2]
[420152954,1775730648955,-251.036469,0.00015709,2]
[420152955,1775730648965,-178.765211,0.00015709,2]
[420152956,1775730648975,-178.765211,0.00015709,2]
[420152957,1775730648984,-1593.187778,0.00015709,2]
[420152958,1775730648994,-178.765211,0.00015709,2]
[420152959,1775730649004,-1593.187778,0.00015709,2]
[420152960,1775730649014,-1593.187778,0.00015709,2]
[420152961,1775730649024,-151.0,0.00015709,2]
[420152962,1775730649034,-2501.266401,0.00015709,2]
[420152963,1775730649044,-550.922457,0.00015709,2]
[420152964,1775730649054,-1593.187778,0.00015709,2]
[420152965,1775730649064,-151.0,0.00015709,2]
[420152966,1775730649073,-550.922457,0.00015709,2]
[420152967,1775730649083,-2501.266401,0.00015709,2]
[420152968,1775730649093,-151.0,0.00015709,2]
[420152969,1775730649103,-151.0,0.00015709,2]
[420152970,1775730649113,-151.0,0.00015709,2]
[420152971,1775730649123,-2501.266401,0.00015709,2]
[420152972,1775730649132,-550.922457,0.00015709,2]
[420152973,1775730649142,-151.0,0.00015709,2]
[420152974,1775730649152,-1286.102119,0.00015709,2]
[420152975,1775730649162,-854.312616,0.00015709,2]
[420152976,1775730649172,-151.0,0.00015709,2]
[420152977,1775730649182,-151.0,0.00015709,2]
[420152978,1775730649191,-151.0,0.00015709,2]
[420152979,1775730649201,-550.922457,0.00015709,2]
[420152980,1775730649210,-172.314368,0.00015709,2]
[420152981,1775730649220,-2501.266401,0.00015709,2]
[420152982,1775730649230,-1286.102119,0.00015709,2]
[420152983,1775730649239,-714.675199,0.00015709,2]
[420152984,1775730649250,-854.312616,0.00015709,2]
[420152985,1775730649260,-151.0,0.00015709,2]
[420152986,1775730649270,-795.875483,0.00015709,2]
[420152987,1775730649280,-172.314368,0.00015709,2]
[420152988,1775730649290,-714.675199,0.00015709,2]
[420152989,1775730649300,-151.0,0.00015709,2]
[420152990,1775730649310,-854.312616,0.00015709,2]
[420152991,1775730649319,-795.875483,0.00015709,2]
[420152992,1775730649329,-151.0,0.00015709,2]
[420152993,1775730649339,-172.314368,0.00015709,2]
[420152994,1775730649350,-151.0,0.00015709,2]
[420152995,1775730649359,-151.0,0.00015709,2]
[420152996,1775730649369,-1286.102119,0.00015709,2]
[420152997,1775730649379,-854.312616,0.00015709,2]
[420152998,1775730649389,-714.675199,0.00015709,2]
[420152999,1775730649399,-795.875483,0.00015709,2]
[420153000,1775730649409,-2429.132347,0.00015709,2]
[420153001,1775730649418,-10015.662551,0.00015709,2]
[420153002,1775730649428,-151.0,0.00015709,2]
[420153003,1775730649438,-151.0,0.00015709,2]
[420153004,1775730649448,-172.314368,0.00015709,2]
[420153005,1775730649457,-1286.102119,0.00015709,2]
[420153006,1775730649467,-714.675199,0.00015709,2]
[420153007,1775730649477,-795.875483,0.00015709,2]
[420153008,1775730649486,-10015.662551,0.00015709,2]
[420153009,1775730649496,-151.0,0.00015709,2]
[420153010,1775730649506,-2429.132347,0.00015709,2]
[420153011,1775730649516,-382.637335,0.00015709,2]
[420153012,1775730649525,-10015.662551,0.00015709,2]
[420153013,1775730649535,-2429.132347,0.00015709,2]
[420153014,1775730649544,-152.282716,0.00015709,2]
[420153015,1775730649554,-1684.84007,0.00015709,2]
[420153016,1775730649564,-382.637335,0.00015709,2]
[420153017,1775730649573,-1681.414266,0.00015709,2]
[420153018,1775730649583,-238.792721,0.00015709,2]
[420153019,1775730649593,-10015.662551,0.00015709,2]
[420153020,1775730649603,-2429.132347,0.00015709,2]
[420153021,1775730649612,-1684.84007,0.00015709,2]
[420153022,1775730649622,-382.637335,0.00015709,2]
[420153023,1775730649631,-1681.414266,0.00015709,2]
[420153024,1775730649641,-234.247138,0.00015709,2]
[420153025,1775730649652,-238.792721,0.00015709,2]
[420153026,1775730649662,-151.0,0.00015709,2]
[420153027,1775730649672,-1684.84007,0.00015709,2]
[420153028,1775730649682,-382.637335,0.00015709,2]
[420153029,1775730649692,-1681.414266,0.00015709,2]
[420153030,1775730649702,-234.247138,0.00015709,2]
[420153031,1775730649712,-151.0,0.00015709,2]
[420153032,1775730649722,-236.897175,0.00015709,2]
[420153033,1775730649732,-238.792721,0.00015709,2]
[420153034,1775730649741,-234.247138,0.00015709,2]
[420153035,1775730649751,-151.0,0.00015709,2]
[420153036,1775730649761,-1684.84007,0.00015709,2]
[420153037,1775730649770,-238.792721,0.00015709,2]
[420153038,1775730649780,-234.247138,0.00015709,2]
[420153039,1775730649790,-1681.414266,0.00015709,2]
[420153040,1775730649800,-1880.018353,0.00015709,2]
[420153041,1775730649809,-151.0,0.00015709,2]
[420153042,1775730649819,-1880.018353,0.00015709,2]
[420153043,1775730649828,-151.0,0.00015709,2]
[420153044,1775730649838,-151.0,0.00015709,2]
[420153045,1775730649847,-1880.018353,0.00015709,2]
[420153046,1775730649857,-555.069348,0.00015709,2]
[420153047,1775730649867,-1880.018353,0.00015709,2]
[420153048,1775730649876,-555.069348,0.00015709,2]
[420153049,1775730649886,-555.069348,0.00015709,2]
[420153050,1775730649896,-395.993179,0.00015709,2]
[420153051,1775730649906,-555.069348,0.00015709,2]
[420153052,1775730649916,-395.993179,0.00015709,2]
[420153053,1775730649926,-641.362299,0.00015709,2]
[420153054,1775730649936,-641.362299,0.00015709,2]
[420153055,1775730649945,-395.993179,0.00015709,2]
[420153056,1775730649956,-214.760309,0.00015709,2]
[420153057,1775730649966,-165.728537,0.00015709,2]
[420153058,1775730649976,-395.993179,0.00015709,2]
[420153059,1775730649986,-641.362299,0.00015709,2]
[420153060,1775730649996,-214.760309,0.00015709,2]
[420153061,1775730650006,-165.728537,0.00015709,2]
[420153062,1775730650016,-641.362299,0.00015709,2]
[420153063,1775730650026,-151.0,0.00015709,2]
[420153064,1775730650036,-214.760309,0.00015709,2]
[420153065,1775730650046,-165.728537,0.00015709,2]
[420153066,1775730650057,-228.759977,0.00015709,2]
[420153067,1775730650067,-151.0,0.00015709,2]
[420153068,1775730650077,-165.728537,0.00015709,2]
[420153069,1775730650086,-1293.90316,0.00015709,2]
[420153070,1775730650096,-228.759977,0.00015709,2]
[420153071,1775730650106,-1293.90316,0.00015709,2]
[420153072,1775730650115,-228.759977,0.00015709,2]
[420153073,1775730650125,-214.760309,0.00015709,2]
[420153074,1775730650135,-1293.90316,0.00015709,2]
[420153075,1775730650145,-1185.412147,0.00015709,2]
[420153076,1775730650154,-341.977028,0.00015709,2]
[420153077,1775730650164,-228.759977,0.00015709,2]
[420153078,1775730650174,-157.888769,0.00015709,2]
[420153079,1775730650184,-1293.90316,0.00015709,2]
[420153080,1775730650194,-1185.412147,0.00015709,2]
[420153081,1775730650204,-557.766277,0.00015709,2]
[420153082,1775730650213,-341.977028,0.00015709,2]
[420153083,1775730650223,-157.888769,0.00015709,2]
[420153084,1775730650232,-1185.412147,0.00015709,2]
[420153085,1775730650243,-557.766277,0.00015709,2]
[420153086,1775730650253,-217.032128,0.00015709,2]
[420153087,1775730650263,-341.977028,0.00015709,2]
[420153088,1775730650273,-442.41648,0.00015709,2]
[420153089,1775730650398,-1043.616451,0.00015709,2]
[420153090,1775730650409,-151.0,0.00015709,2]
[420153091,1775730650418,-151.0,0.00015709,2]
[420153092,1775730650433,-1185.412147,0.00015709,2]
[420153093,1775730650442,-557.766277,0.00015709,2]
[420153094,1775730650452,-341.977028,0.00015709,2]
[420153095,1775730650462,-1043.616451,0.00015709,2]
[420153096,1775730650472,-442.41648,0.00015709,2]
[420153097,1775730650482,-151.0,0.00015709,2]
[420153098,1775730650492,-557.766277,0.00015709,2]
[420153099,1775730650501,-151.0,0.00015709,2]
[420153100,1775730650511,-1043.616451,0.00015709,2]
[420153101,1775730650520,-442.41648,0.00015709,2]
[420153102,1775730650530,-151.0,0.00015709,2]
[420153103,1775730650539,-1043.616451,0.00015709,2]
[420153104,1775730650549,-442.41648,0.00015709,2]
[420153105,1775730650559,-151.0,0.00015709,2]
[420153106,1775730650568,-151.0,0.00015709,2]
[420153107,1775730650578,-157.888769,0.00015709,2]
[420153108,1775730650588,-9056.299633,0.00015709,2]
[420153109,1775730650598,-151.0,0.00015709,2]
[420153110,1775730650607,-151.0,0.00015709,2]
[420153111,1775730650617,-157.888769,0.00015709,2]
[420153112,1775730650626,-151.0,0.00015709,2]
[420153113,1775730650636,-9056.299633,0.00015709,2]
[420153114,1775730650646,-151.0,0.00015709,2]
[420153115,1775730650655,-381452.72986565,0.0001571,2]
[420153116,1775730651795,-685.0,0.0001571,2]
[420153117,1775730652005,-2471.0,0.00012913,2]
[420153118,1775730652015,-9056.299633,0.00013976,2]
[420153119,1775730652024,-151.0,0.00013976,2]
[420153120,1775730652034,-151.0,0.00013976,2]
[420153121,1775730652044,-464.62375716,0.0001561,2]
[420153122,1775730652054,-151.0,0.00015701,2]
[420153123,1775730652064,-1953.24721546,0.00015701,2]
[420153124,1775730652076,-262.0,0.00015701,2]
[420153125,1775730652439,-512.29167431,0.00013976,2]
[420153126,1775730652451,-2016.53103034,0.00013976,2]
[420153127,1775730652498,-6527.47692835,0.00013976,2]
[420153128,1775730652508,-1003.78561299,0.00015395,2]
[420153129,1775730652518,-1948.58327112,0.0001561,2]
[420153130,1775730652527,-6841.05241754,0.00015701,2]
[420153131,1775730652537,-151.0,0.00015701,2]
[420153132,1775730652546,-151.0,0.00015701,2]
[420153133,1775730652556,-9056.299633,0.00015701,2]
[420153134,1775730652566,-151.0,0.00015709,2]
[420153135,1775730652575,-9056.299633,0.00015709,2]
[420153136,1775730652585,-153.884715,0.00015709,2]
[420153137,1775730652595,-9056.299633,0.00015709,2]
[420153138,1775730652605,-165.676086,0.00015709,2]
[420153139,1775730652615,-733.0,0.00015709,2]
[420153140,1775730652624,-60467.31183561,0.0001571,2]
[420153142,1775731533125,-2318.50601959,0.00010512,2]
[420153143,1775731631658,-181.49398041,0.00010512,2]
[420153144,1775731631680,-1117.7161826,0.00010602,2]
[420153145,1775731832779,-302.0,0.00010512,2]
[420153146,1775731832789,-1866.5934,0.00010512,2]
[420153147,1775731832799,-2710.36103189,0.00010602,2]
[420153148,1775731832808,-1200.0,0.00010605,2]
[420153149,1775731832818,-200.0,0.00010606,2]
[420153150,1775731832828,-1156.41848616,0.00010606,2]
[420153151,1775731832837,-151.0,0.00010606,2]
[420153152,1775731832847,-150.0,0.00010611,2]
[420153153,1775731832856,-300.0,0.00010611,2]
[420153154,1775731832866,-150.0,0.00010612,2]
[420153155,1775731832876,-500.0,0.00010959,2]
[420153156,1775731832885,-150.0,0.00010959,2]
[420153157,1775731832896,-1199.20597015,0.00011154,2]
[420153160,1775731832906,-214.95339963,0.0001122,2]
[420153161,1775731832916,-1500.0,0.00011389,2]
[420153163,1775731832925,-150.0,0.000114,2]
[420153165,1775731832935,-249.0,0.00011416,2]
[420153167,1775731832945,-500.0,0.00011426,2]
[420153169,1775731832955,-326.0,0.00011464,2]
[420153171,1775731832965,-371.0,0.00011487,2]
[420153173,1775731832974,-1237.0,0.0001151,2]
[420153175,1775731832983,-209.00930196,0.00011519,2]
[420153177,1775731832993,-600.0,0.00011563,2]
[420153179,1775731833002,-195.0,0.00011563,2]
[420153182,1775731833013,-223.0,0.00011583,2]
[420153184,1775731833023,-1020.0,0.00011606,2]
[420153185,1775731833032,-1167.0,0.00011618,2]
[420153186,1775731833042,-277.0,0.0001164,2]
[420153187,1775731833052,-255.0,0.0001164,2]
[420153188,1775731833061,-903.0,0.00011641,2]
[420153189,1775731833071,-1709.0,0.00011649,2]
[420153190,1775731833082,-195.0,0.00011662,2]
[420153191,1775731833091,-195.0,0.00011662,2]
[420153192,1775731833101,-195.0,0.00011662,2]
[420153193,1775731833111,-195.0,0.00011662,2]
[420153194,1775731833122,-600.0,0.00011662,2]
[420153195,1775731833131,-600.0,0.00011662,2]
[420153196,1775731833141,-600.0,0.00011662,2]
[420153197,1775731833151,-600.0,0.00011662,2]
[420153198,1775731833161,-250.0,0.00011662,2]
[420153199,1775731833170,-1680.0,0.00011665,2]
[420153200,1775731833180,-267.79541215,0.00011672,2]
[420153201,1775731833192,-693.0,0.00011673,2]
[420153202,1775731833203,-1243.57659104,0.00011702,2]
[420153203,1775731833213,-600.0,0.000118,4]
[420153204,1775731833223,-150.0,0.00011862,2]
[420153205,1775731833232,-262.32,0.00011862,2]
[420153206,1775731833242,-150.0,0.00011862,2]
[420153207,1775731833252,-150.0,0.00011862,2]
[420153208,1775731833262,-150.0,0.00011862,2]
[420153209,1775731833272,-150.0,0.00011862,2]
[420153210,1775731833282,-150.0,0.00011862,2]
[420153211,1775731833291,-185.45331972,0.00011862,2]
[420153212,1775731833301,-500.0,0.00011871,2]
[420153213,1775731833311,-432.95047417,0.00011884,2]
[420153214,1775731833322,-33044.9118,0.00011887,2]
[420153215,1775731833333,-1000.0,0.00011887,2]
[420153216,1775731833343,-500.0,0.00011887,2]
[420153217,1775731833353,-1200.0,0.000119,4]
[420153218,1775731833362,-500.0,0.00011925,2]
[420153219,1775731833372,-67.14139952,0.00011925,2]
[420153220,1775731833384,-432.85860048,0.00011925,2]
[420153221,1775731833394,-500.0,0.00011925,2]
[420153222,1775731833403,-500.0,0.00011925,2]
[420153223,1775731833413,-500.0,0.00011925,2]
[420153224,1775731833423,-500.0,0.00011925,2]
[420153225,1775731833432,-500.0,0.00011925,2]
[420153226,1775731833442,-416.55077892,0.00011925,2]
[420153227,1775731833452,-1048.18899473,0.00012076,2]
[420153228,1775731833461,-653.11021539,0.000121,2]
[420153229,1775731833471,-2006.1093607,0.00012111,2]
[420153230,1775731833481,-500.0,0.00012161,2]
[420153231,1775731833490,-500.0,0.00012173,2]
[420153232,1775731833500,-500.0,0.00012173,2]
[420153233,1775731833510,-751.95,0.00012199,2]
[420153234,1775731833519,-694.0091843,0.0001225,2]
[420153235,1775731833528,-475.3894655,0.00012435,2]
[420153236,1775731833538,-160.0,0.00012466,2]
[420153237,1775731833548,-751.95,0.00012473,2]
[420153238,1775731833558,-2006.10936066,0.000125,2]
[420153239,1775731833567,-172.8202,0.000127,2]
[420153240,1775731833577,-1000.0,0.00012721,2]
[420153241,1775731833586,-751.95,0.00012747,2]
[420153242,1775731833596,-433.0,0.00012765,2]
[420153243,1775731833605,-2351.0,0.00012832,2]
[420153244,1775731833615,-2006.10936066,0.00012889,2]
[420153245,1775731833625,-751.95,0.00013021,2]
[420153246,1775731833634,-503.0,0.0001311,2]
[420153247,1775731833644,-1047.0,0.00013243,2]
[420153248,1775731833654,-3524.0,0.00013243,2]
[420153249,1775731833663,-622.0,0.00013243,2]
[420153250,1775731833673,-1347.0,0.00013243,2]
[420153251,1775731833683,-1264.0,0.00013243,2]
[420153252,1775731833692,-926.0,0.00013243,2]
[420153253,1775731833702,-1143.60485209,0.00013243,2]
[420153254,1775731833715,-74.39514791,0.00013243,2]
[420153255,1775731833725,-3773.0,0.00013243,2]
[420153256,1775731833735,-415.0,0.00013243,2]
[420153257,1775731833744,-1500.0,0.00013268,2]
[420153258,1775731833754,-2006.10936066,0.00013277,2]
[420153259,1775731833764,-751.95,0.00013295,2]
[420153260,1775731833773,-3240.0,0.00013425,2]
[420153261,1775731833783,-752.0,0.00013569,2]
[420153262,1775731833792,-2006.10936066,0.00013666,2]
[420153263,1775731833802,-500.0,0.0001367,2]
[420153264,1775731833811,-1000.0,0.0001367,2]
[420153265,1775731833821,-1000.0,0.0001367,2]
[420153266,1775731833830,-666.54570841,0.0001367,2]
[420153267,1775731833840,-1000.0,0.0001367,2]
[420153268,1775731833849,-500.0,0.0001367,2]
[420153269,1775731833859,-228.66639528,0.00013699,2]
[420153270,1775731833870,-150.0,0.00013699,2]
[420153271,1775731833881,-30.28026227,0.00013699,2]
[420153272,1775731834320,-547.64479999,0.00013699,2]
[420153273,1775731838522,-1994.0,0.00011429,2]
[420153274,1775731838532,-185.39170971,0.00011452,2]
[420153275,1775731838543,-3343.07493774,0.00013699,2]
[420153276,1775731838552,-150.0,0.00013699,2]
[420153277,1775731838563,-150.0,0.00013699,2]
[420153278,1775731838574,-166.66,0.00013699,2]
[420153279,1775731838583,-2625.84,0.00013699,2]
[420153280,1775731838593,-299.99,0.00013699,2]
[420153281,1775731838603,-192.23,0.00013699,2]
[420153282,1775731838613,-1000.0,0.00013699,2]
[420153283,1775731838623,-1100.0,0.00013792,2]
[420153284,1775731838632,-960.35,0.00013793,2]
[420153285,1775731838643,-247.18,0.00013801,2]
[420153286,1775731838652,-2000.0,0.00013816,2]
[420153287,1775731838662,-166.66,0.00013836,2]
[420153288,1775731838672,-250.0,0.0001389,2]
[420153295,1775731839201,-1900.0,0.000139,5]
[420153296,1775731839212,-500.0,0.00013918,2]
[420153297,1775731839222,-1000.0,0.0001397,2]